bitfinex/quotes_SOLUSD_20260220
["timestamp","ask_amount","ask_price","bid_price","bid_amount"]
[1771548042795,0.48680149,83.355,83.322,0.4660059]
[1771548043178,93.4972326,83.384,83.32,3.54469318]
[1771548043179,0.48680149,83.383,83.343,0.4660059]
[1771548043383,0.48680149,83.383,83.342,11.99875212]
[1771548043384,0.48680149,83.383,83.36,3.54469318]
[1771548043588,0.48680149,83.382,83.357,0.4660059]
[1771548043889,0.48680149,83.382,83.35,3.54469318]
[1771548044083,0.48680149,83.382,83.351,0.4660059]
[1771548045791,0.48680149,83.38,83.35,3.54469318]
[1771548046498,0.48680149,83.38,83.351,0.4660059]
[1771548047383,0.48680149,83.38,83.342,29.99688032]
[1771548047384,0.48680149,83.378,83.353,0.4660059]
[1771548048398,0.48680149,83.378,83.35,3.54469318]
[1771548048585,0.48680149,83.378,83.32,3.54469318]
[1771548048586,0.48680149,83.378,83.34,3.54469318]
[1771548048781,0.48680149,83.378,83.341,0.4660059]
[1771548049881,0.48680149,83.376,83.343,0.4660059]
[1771548051796,0.48680149,83.374,83.343,0.4660059]
[1771548051998,11.99400299,83.375,83.323,0.4660059]
[1771548051999,0.48680149,83.359,83.323,0.4660059]
[1771548052781,0.48680149,83.349,83.317,12.00231623]
[1771548053294,0.48680149,83.349,83.32,3.54469318]
[1771548053500,0.48680149,83.349,83.317,12.00231623]
[1771548053801,3.69383402,83.372,83.309,0.4660059]
[1771548053802,0.48680149,83.338,83.309,0.4660059]
[1771548054003,0.48680149,83.338,83.307,12.00377404]
[1771548054997,0.48680149,83.338,83.3,15.5493555]
[1771548055197,0.48680149,83.329,83.3,12.00466232]
[1771548055397,0.48680149,83.329,83.3,15.5493555]
[1771548055989,0.48680149,83.34,83.301,0.4660059]
[1771548056189,0.48680149,83.349,83.31,3.54469318]
[1771548056395,0.48680149,83.339,83.3,15.5493555]
[1771548057921,0.48680149,83.329,83.291,0.4660059]
[1771548058226,0.48680149,83.327,83.291,0.4660059]
[1771548058402,0.48680149,83.327,83.293,0.4660059]
[1771548061322,0.48680149,83.325,83.293,0.4660059]
[1771548063225,0.46518718,83.319,83.28,0.2]
[1771548063520,0.46518718,83.317,83.28,3.74469318]
[1771548064614,0.46518718,83.315,83.28,3.74469318]
[1771548064819,0.46518718,83.309,83.28,3.74469318]
[1771548065425,0.46518718,83.309,83.28,0.2]
[1771548065721,0.46518718,83.299,83.262,0.49008655]
[1771548066510,0.46518718,83.299,83.261,12.01028139]
[1771548066511,0.46518718,83.297,83.261,12.01028139]
[1771548066715,0.46518718,83.289,83.261,12.01028139]
[1771548067903,3.54469318,83.29,83.261,12.01028139]
[1771548067904,0.4950942,83.287,83.261,12.01028139]
[1771548068108,12.00653155,83.288,83.24,3.75033004]
[1771548068109,0.4950942,83.279,83.244,12.01276084]
[1771548068627,0.4950942,83.279,83.241,0.45631485]
[1771548068812,0.4950942,83.271,83.24,3.75033004]
[1771548070335,0.28432314,83.263,83.231,0.45631485]
[1771548070513,0.4950942,83.26,83.231,0.45631485]
[1771548070830,0.4950942,83.266,83.221,0.45631485]
[1771548071009,0.4950942,83.266,83.231,0.45631485]
[1771548072824,0.4950942,83.259,83.22,3.75033004]
[1771548073133,0.4950942,83.259,83.221,0.45631485]
[1771548073320,0.4950942,83.259,83.23,3.55033004]
[1771548073519,0.4950942,83.259,83.231,0.45631485]
[1771548074107,0.4950942,83.259,83.221,0.45631485]
[1771548074312,0.4950942,83.249,83.22,0.2]
[1771548074814,0.4950942,83.247,83.22,0.2]
[1771548078140,0.4950942,83.245,83.22,0.2]
[1771548078937,0.4950942,83.239,83.2,0.65631485]
[1771548079135,0.28432314,83.244,83.2,0.65631485]
[1771548079136,0.4950942,83.229,83.2,0.2]
[1771548079316,0.4950942,83.229,83.201,12.47540115]
[1771548079638,0.4950942,83.229,83.202,0.45631485]
[1771548081543,0.4950942,83.227,83.202,0.45631485]
[1771548082027,12.01518719,83.228,83.2,0.2]
[1771548082028,0.4950942,83.219,83.2,0.2]
[1771548083141,0.4950942,83.217,83.2,0.2]
[1771548084126,0.4950942,83.217,83.19,0.2]
[1771548084334,0.4950942,83.209,83.19,0.2]
[1771548086435,12.51236851,83.214,83.191,0.45631485]
[1771548086626,0.4950942,83.213,83.191,0.45631485]
[1771548087147,12.01749747,83.212,83.191,0.45631485]
[1771548089149,12.01635951,83.22,83.2,3.55033004]
[1771548089329,12.51013703,83.229,83.201,0.45631485]
[1771548089535,3.49,84.469,83.201,0.45631485]
[1771548089536,0.4950942,83.238,83.201,0.45631485]
[1771548089862,0.4950942,83.209,83.19,0.2]
[1771548091554,12.51312709,83.209,83.19,0.2]
[1771548092131,0.4950942,83.208,83.19,0.2]
[1771548092827,0.4950942,83.208,83.17,3.75033004]
[1771548093027,0.4950942,83.189,83.16,0.2]
[1771548093634,0.4950942,83.187,83.16,0.2]
[1771548093834,0.4950942,83.187,83.162,0.45631485]
[1771548095737,3.55033004,83.19,83.16,0.2]
[1771548095738,0.4950942,83.185,83.16,0.2]
[1771548096332,0.4950942,83.185,83.161,0.45631485]
[1771548096533,12.02071243,83.19,83.161,0.45631485]
[1771548096747,0.4950942,83.189,83.161,0.45631485]
[1771548097638,12.02096456,83.188,83.161,0.45631485]
[1771548097950,0.46772906,83.187,83.161,0.45631485]
[1771548099236,0.46772906,83.187,83.16,0.2]
[1771548099657,0.46772906,83.179,83.16,0.2]
[1771548099956,0.46772906,83.177,83.16,0.2]
[1771548100855,0.46772906,83.169,83.125,0.47749222]
[1771548101062,0.46772906,83.169,83.112,6.28733257]
[1771548101063,0.46772906,83.149,83.12,3.55033004]
[1771548101439,0.46772906,83.149,83.12,4.02782226]
[1771548101638,0.46772906,83.149,83.121,0.47749222]
[1771548101849,12.49447654,83.148,83.121,0.47749222]
[1771548102650,0.46772906,83.147,83.121,0.47749222]
[1771548102846,0.46772906,83.147,83.114,0.47749222]
[1771548103052,0.46772906,83.139,83.114,0.47749222]
[1771548103955,0.46772906,83.139,83.11,15.78253855]
[1771548103956,0.46772906,83.139,83.116,0.47749222]
[1771548106559,12.49592314,83.138,83.116,0.47749222]
[1771548107146,0.46772906,83.144,83.117,0.47749222]
[1771548107345,0.46772906,83.155,83.121,0.47749222]
[1771548107947,0.46772906,83.149,83.112,0.47749222]
[1771548108147,0.46772906,83.149,83.121,0.47749222]
[1771548109386,0.46772906,83.167,83.131,0.47749222]
[1771548109680,0.46772906,83.176,83.141,0.47749222]
[1771548110247,0.46772906,83.169,83.141,0.47749222]
[1771548111559,0.46772906,83.169,83.143,0.47749222]
[1771548111760,0.46772906,83.189,83.151,0.47749222]
[1771548112058,0.46772906,83.186,83.151,0.47749222]
[1771548113956,0.46772906,83.179,83.151,0.47749222]
[1771548115583,0.46772906,83.179,83.144,0.47749222]
[1771548116379,0.46772906,83.177,83.15,4.02782226]
[1771548116679,0.46772906,83.177,83.15,0.47749222]
[1771548118061,0.46772906,83.177,83.141,0.47749222]
[1771548118255,0.46772906,83.177,83.142,0.47749222]
[1771548118566,42.07843419,83.178,83.14,3.55033004]
[1771548118567,0.46772906,83.169,83.14,3.55033004]
[1771548118766,0.46772906,83.169,83.134,0.47749222]
[1771548119464,12.02269885,83.176,83.141,0.47749222]
[1771548119671,0.46772906,83.181,83.151,0.47749222]
[1771548120085,0.46772906,83.179,83.141,0.47749222]
[1771548121859,0.46772906,83.177,83.143,0.47749222]
[1771548127483,0.49181526,83.175,83.143,0.47749222]
[1771548128591,12.02269885,83.176,83.14,3.55033004]
[1771548128592,0.49181526,83.173,83.145,0.4633747]
[1771548131395,12.02327706,83.172,83.15,3.56004962]
[1771548131602,0.49181526,83.171,83.15,4.02342432]
[1771548132094,12.02232405,83.179,83.151,0.4633747]
[1771548132389,12.51363332,83.183,83.161,0.4633747]
[1771548132595,0.49181526,83.19,83.161,0.4633747]
[1771548133069,0.49181526,83.188,83.161,0.4633747]
[1771548133581,0.49181526,83.186,83.161,0.4633747]
[1771548133969,0.49181526,83.186,83.162,12.02472283]
[1771548135098,0.49181526,83.186,83.162,12.48809753]
[1771548136377,0.49181526,83.184,83.162,0.4633747]
[1771548136992,0.49181526,83.184,83.158,12.02520754]
[1771548137986,3.56004962,83.18,83.15,4.02342432]
[1771548138276,0.49181526,83.179,83.151,12.02631357]
[1771548138477,0.49181526,83.177,83.151,12.02631357]
[1771548139093,0.49181526,83.177,83.151,12.48968827]
[1771548139399,0.49181526,83.177,83.152,0.4633747]
[1771548141602,0.49181526,83.175,83.152,0.4633747]
[1771548142894,0.49181526,83.175,83.152,12.48952437]
[1771548143087,0.49181526,83.175,83.153,0.4633747]
[1771548144697,0.49181526,83.175,83.152,12.02614967]
[1771548144698,0.49181526,83.173,83.15,3.56004962]
[1771548145000,0.49181526,83.173,83.151,0.4633747]
[1771548148400,0.49181526,83.173,83.153,0.4633747]
[1771548148780,0.49181526,83.178,83.153,0.4633747]
[1771548149000,12.02024208,83.193,83.17,3.56004962]
[1771548149182,0.49181526,83.192,83.17,4.02342432]
[1771548149500,0.49181526,83.192,83.17,3.56004962]
[1771548149704,0.49181526,83.192,83.171,0.4633747]
[1771548151181,0.49181526,83.19,83.171,0.4633747]
[1771548153104,0.49181526,83.19,83.161,0.4633747]
[1771548153306,0.49181526,83.188,83.16,3.56004962]
[1771548153692,0.49181526,83.188,83.155,0.4633747]
[1771548154283,0.49181526,83.188,83.144,30.06819353]
[1771548154284,0.49181526,83.188,83.161,0.4633747]
[1771548156294,12.02110906,83.187,83.161,0.4633747]
[1771548156500,0.49181526,83.186,83.161,0.4633747]
[1771548157489,12.02110906,83.187,83.171,0.4863796]
[1771548158080,12.02110906,83.187,83.165,0.4863796]
[1771548158286,12.02110906,83.187,83.16,3.56004962]
[1771548158486,12.02110906,83.187,83.161,0.4863796]
[1771548159409,12.02110906,83.187,83.162,0.4863796]
[1771548159990,0.48674164,83.186,83.162,0.4863796]
[1771548160289,0.48674164,83.169,83.135,0.4863796]
[1771548160606,0.48674164,83.169,83.13,3.56004962]
[1771548160607,0.48674164,83.167,83.137,0.4863796]
[1771548160905,0.48674164,83.167,83.141,0.4863796]
[1771548162908,12.02414448,83.166,83.141,0.4863796]
[1771548163405,12.51088612,83.166,83.141,0.4863796]
[1771548163609,0.48674164,83.165,83.141,0.4863796]
[1771548164208,0.48674164,83.165,83.143,0.4863796]
[1771548165309,0.48674164,83.163,83.143,0.4863796]
[1771548169515,12.02394053,83.168,83.145,0.4863796]
[1771548169695,12.51068217,83.168,83.145,0.4863796]
[1771548170199,0.48674164,83.167,83.145,0.4863796]
[1771548172608,3.56004962,83.18,83.14,4.04642922]
[1771548172609,0.48674164,83.165,83.14,4.04642922]
[1771548172787,0.48674164,83.159,83.124,0.4863796]
[1771548172993,0.48674164,83.149,83.121,0.4863796]
[1771548173500,0.48674164,83.149,83.12,3.56004962]
[1771548173700,0.28432314,83.162,83.121,0.4863796]
[1771548173903,0.48674164,83.163,83.131,0.4863796]
[1771548174612,0.48674164,83.163,83.14,3.56004962]
[1771548175594,0.48674164,83.161,83.14,3.56004962]
[1771548176013,0.48674164,83.161,83.139,0.4863796]
[1771548176610,0.48674164,83.161,83.132,0.4863796]
[1771548177192,0.48674164,83.161,83.141,0.4863796]
[1771548177400,12.02472283,83.162,83.141,0.4863796]
[1771548177791,12.02298795,83.174,83.141,12.02768666]
[1771548177993,3.69383402,83.192,83.151,0.4863796]
[1771548178205,97.19106662,83.192,83.151,0.4863796]
[1771548178905,3.56004962,83.19,83.151,0.4863796]
[1771548180009,0.48674164,83.187,83.153,0.4863796]
[1771548180610,0.48674164,83.187,83.161,0.4863796]
[1771548182203,12.02125357,83.186,83.161,0.4863796]
[1771548182404,0.46628346,83.185,83.161,0.4863796]
[1771548183118,0.46628346,83.185,83.15,3.56004962]
[1771548183119,0.46628346,83.179,83.149,0.46089392]
[1771548183417,0.46628346,83.179,83.143,0.46089392]
[1771548184498,0.46628346,83.177,83.143,0.46089392]
[1771548188018,0.47498514,83.175,83.145,0.49391886]
[1771548188209,0.47498514,83.175,83.15,3.56004962]
[1771548188904,0.47498514,83.175,83.145,0.49391886]
[1771548189218,0.25877534,83.175,83.145,0.49391886]
[1771548190015,12.02298795,83.174,83.14,3.56004962]
[1771548190242,3.56004962,83.17,83.137,12.02821247]
[1771548191401,0.47498514,83.169,83.137,12.02821247]
[1771548192008,0.47498514,83.169,83.137,12.52213133]
[1771548192215,0.47498514,83.167,83.14,3.56089996]
[1771548193708,0.47498514,83.167,83.137,12.52213133]
[1771548193909,0.47498514,83.167,83.138,0.49391886]
[1771548194822,0.47498514,83.165,83.139,12.02804941]
[1771548195032,0.47498514,83.159,83.131,0.49391886]
[1771548196027,0.47498514,83.159,83.121,0.49391886]
[1771548197525,0.47498514,83.157,83.121,0.49391886]
[1771548198425,0.47498514,83.149,83.11,3.76089996]
[1771548198630,0.47498514,83.149,83.111,0.49391886]
[1771548199431,0.47498514,83.149,83.121,0.49391886]
[1771548200523,12.50173262,83.148,83.121,0.49391886]
[1771548201935,0.47498514,83.147,83.121,0.49391886]
[1771548204931,0.47498514,83.145,83.121,0.49391886]
[1771548207037,42.09057892,83.154,83.13,3.56089996]
[1771548207228,42.09057892,83.154,83.131,0.49391886]
[1771548207632,0.47498514,83.153,83.131,0.49391886]
[1771548208022,0.47498514,83.153,83.121,0.49391886]
[1771548209547,0.47498514,83.151,83.122,0.49391886]
[1771548210447,0.47498514,83.151,83.131,0.49391886]
[1771548211643,0.47498514,83.149,83.131,0.49391886]
[1771548213953,12.0264582,83.15,83.131,0.49391886]
[1771548214149,0.47498514,83.154,83.12,3.56089996]
[1771548214150,93.4972326,83.155,83.141,0.49391886]
[1771548214535,12.02385532,83.168,83.142,0.49391886]
[1771548215258,12.02385532,83.168,83.151,0.49391886]
[1771548216658,42.08058985,83.174,83.151,0.49391886]
[1771548216854,12.02298795,83.174,83.151,0.49391886]
[1771548218659,0.48221799,83.171,83.151,0.49391886]
[1771548219553,12.02327706,83.172,83.151,0.49391886]
[1771548220735,0.48221799,83.192,83.161,0.46784006]
[1771548221258,0.28432314,83.191,83.161,0.46784006]
[1771548221762,0.48221799,83.189,83.161,0.46784006]
[1771548223244,0.48221799,83.187,83.161,0.46784006]
[1771548225357,0.48221799,83.185,83.161,0.46784006]
[1771548227266,12.0215426,83.184,83.161,0.46784006]
[1771548227451,12.50376059,83.184,83.161,0.46784006]
[1771548228043,0.48221799,83.183,83.161,0.46784006]
[1771548229449,12.02183164,83.182,83.161,0.46784006]
[1771548230857,12.01951969,83.198,83.161,0.46784006]
[1771548231166,12.01951969,83.198,83.171,0.46784006]
[1771548231544,3.69383402,83.2,83.171,0.46784006]
[1771548233167,0.48221799,83.199,83.171,0.46784006]
[1771548233770,0.48221799,83.197,83.171,0.46784006]
[1771548236456,12.01980864,83.196,83.171,0.46784006]
[1771548237279,0.48221799,83.195,83.171,0.46784006]
[1771548238176,12.0200976,83.194,83.171,0.46784006]
[1771548238469,12.0200976,83.194,83.133,48.11520818]
[1771548238470,0.48221799,83.193,83.165,0.46784006]
[1771548238771,0.48221799,83.189,83.165,0.46784006]
[1771548240287,0.48221799,83.187,83.165,0.46784006]
[1771548241068,0.48221799,83.193,83.167,0.46784006]
[1771548241266,12.50256275,83.193,83.167,0.46784006]
[1771548242370,0.46523434,83.192,83.167,0.46784006]
[1771548247868,42.07094997,83.193,83.167,0.46784006]
[1771548247869,3.56089996,83.19,83.167,0.46784006]
[1771548248077,0.45227318,83.189,83.151,0.48038825]
[1771548249777,0.45227318,83.189,83.152,0.48038825]
[1771548250169,0.45227318,83.187,83.154,0.48038825]
[1771548252495,42.52666069,83.186,83.161,0.48038825]
[1771548252696,0.45227318,83.185,83.161,0.48038825]
[1771548257196,12.47381578,83.184,83.161,0.48038825]
[1771548258898,0.45227318,83.183,83.161,0.48038825]
[1771548260400,0.45227318,83.181,83.161,0.48038825]
[1771548261200,12.02183164,83.182,83.162,0.48038825]
[1771548262599,0.45227318,83.187,83.162,0.48038825]
[1771548268712,12.47352675,83.186,83.162,0.48038825]
[1771548269807,12.02125357,83.186,83.162,0.48038825]
[1771548270014,0.45227318,83.185,83.162,0.48038825]
[1771548270186,12.02125357,83.186,83.162,0.48038825]
[1771548270708,89.23959314,83.203,83.171,0.48038825]
[1771548271001,0.45227318,83.202,83.171,0.48038825]
[1771548271188,12.47121503,83.202,83.171,0.48038825]
[1771548273087,0.45227318,83.201,83.172,0.48038825]
[1771548275109,0.45227318,83.199,83.172,0.48038825]
[1771548277209,0.46314682,83.197,83.172,0.48038825]
[1771548278497,0.46314682,83.197,83.166,0.45454272]
[1771548279611,0.46314682,83.195,83.166,0.45454272]
[1771548280604,0.46314682,83.189,83.125,3.69383402]
[1771548280812,0.46314682,83.189,83.15,3.55900796]
[1771548281510,0.46314682,83.187,83.15,3.55900796]
[1771548281715,0.46314682,83.187,83.151,12.02631357]
[1771548281910,0.46314682,83.187,83.16,3.55900796]
[1771548282118,12.02096456,83.188,83.16,3.55900796]
[1771548282697,12.02096456,83.188,83.161,0.45454272]
[1771548283093,12.48411138,83.188,83.161,0.45454272]
[1771548284501,0.46314682,83.187,83.162,12.02472283]
[1771548284699,0.46314682,83.187,83.163,0.45454272]
[1771548285019,0.46314682,83.192,83.171,0.45454272]
[1771548285206,12.01937523,83.199,83.171,0.45454272]
[1771548285411,12.01937523,83.199,83.181,0.45454272]
[1771548287013,12.48252205,83.199,83.181,0.45454272]
[1771548287320,0.46314682,83.198,83.181,0.45454272]
[1771548289711,12.01966417,83.197,83.181,0.45454272]
[1771548293317,0.46314682,83.196,83.181,0.45454272]
[1771548293518,0.46314682,83.196,83.171,0.45454272]
[1771548297407,0.46314682,83.194,83.171,0.45454272]
[1771548301437,0.46314682,83.194,83.173,0.45454272]
[1771548301935,12.50086794,83.198,83.173,0.45454272]
[1771548302119,0.48126654,83.197,83.173,0.45454272]
[1771548303030,0.48126654,83.197,83.161,12.02486742]
[1771548304131,0.48126654,83.195,83.17,3.55900796]
[1771548304830,12.01980864,83.196,83.17,3.55900796]
[1771548305039,12.01980864,83.196,83.171,0.49218989]
[1771548306824,12.01980864,83.196,83.173,0.45611796]
[1771548307025,0.48126654,83.199,83.173,0.45611796]
[1771548307230,12.01891437,83.203,83.181,0.45611796]
[1771548307417,0.46345032,83.202,83.181,0.45611796]
[1771548310848,88.78731996,83.236,83.191,0.45611796]
[1771548310849,0.46345032,83.228,83.191,0.45611796]
[1771548311025,12.01504283,83.229,83.182,12.02183164]
[1771548311026,12.01504283,83.229,83.201,0.45611796]
[1771548311421,0.46345032,83.233,83.211,0.45611796]
[1771548311624,30.03157718,83.246,83.22,3.55900796]
[1771548311625,12.01412586,83.236,83.22,3.55900796]
[1771548313019,12.01286496,83.245,83.22,3.55900796]
[1771548313220,12.01286496,83.245,83.21,3.55900796]
[1771548313221,0.46345032,83.239,83.21,3.55900796]
[1771548313421,0.46345032,83.239,83.22,3.55900796]
[1771548313620,0.46345032,83.252,83.221,0.12457932]
[1771548314025,0.46345032,83.252,83.23,3.55307113]
[1771548314224,0.46345032,83.252,83.231,0.12457932]
[1771548314632,12.47531804,83.251,83.231,0.12457932]
[1771548314832,0.46345032,83.249,83.216,0.12457929]
[1771548315228,0.46345032,83.249,83.214,12.01711897]
[1771548316129,0.46345032,83.249,83.22,3.55307113]
[1771548316336,0.46345032,83.249,83.221,0.12457927]
[1771548317250,0.46345032,83.247,83.215,0.12457925]
[1771548317648,0.46345032,83.239,83.207,12.018186]
[1771548318952,0.46345032,83.239,83.206,0.12457921]
[1771548319652,0.46345032,83.237,83.206,0.12457921]
[1771548319848,0.46345032,83.219,83.18,3.55307113]
[1771548320150,0.46345032,83.199,83.163,0.12457918]
[1771548321652,0.46345032,83.189,83.157,0.12457914]
[1771548321954,0.46345032,83.189,83.161,0.12457914]
[1771548323642,0.46345032,83.187,83.161,0.12457914]
[1771548325934,0.46345032,83.185,83.16,3.55307113]
[1771548326148,0.46345032,83.185,83.157,0.12457906]
[1771548326357,0.46345032,83.185,83.15,15.57948639]
[1771548326658,0.46345032,83.179,83.143,0.12457904]
[1771548327358,0.46345032,83.179,83.142,12.02752288]
[1771548328150,0.46345032,83.169,83.142,12.02752288]
[1771548328353,0.46345032,83.169,83.14,3.55307113]
[1771548328562,0.46345032,83.169,83.14,12.0278172]
[1771548328738,0.46345032,83.169,83.14,15.58088833]
[1771548331139,3.69383402,83.195,83.127,30.07417318]
[1771548331140,0.46345032,83.159,83.131,0.12457897]
[1771548331357,0.46345032,83.159,83.127,12.1543015]
[1771548331559,0.46345032,83.159,83.13,3.55307113]
[1771548332153,0.46345032,83.159,83.131,0.12457895]
[1771548332356,0.46345032,83.159,83.14,3.67765008]
[1771548334658,12.02530123,83.158,83.14,0.12457895]
[1771548335043,12.48875155,83.158,83.14,0.12457895]
[1771548336048,12.48875155,83.158,83.112,0.12457888]
[1771548336254,0.46345032,83.157,83.131,0.12457888]
[1771548337167,12.02559045,83.156,83.131,0.12457888]
[1771548337882,3.69383402,83.18,83.151,0.12457883]
[1771548338043,0.48411677,83.182,83.16,3.55307113]
[1771548338657,12.02102011,83.188,83.17,3.55307113]
[1771548338658,0.50000073,83.188,83.17,3.55307113]
[1771548338861,0.50000073,83.196,83.17,3.55307113]
[1771548339042,0.50000073,83.196,83.16,3.55307113]
[1771548339642,12.01995312,83.195,83.161,12.02486742]
[1771548339843,0.50000073,83.194,83.161,12.02486742]
[1771548341468,12.02024208,83.193,83.161,12.02486742]
[1771548341657,0.50000073,83.192,83.161,12.02486742]
[1771548345354,0.50000073,83.198,83.17,3.55307113]
[1771548346163,0.50000073,83.196,83.171,12.02342162]
[1771548347781,0.50000073,83.196,83.135,0.28432314]
[1771548347782,0.50000073,83.196,83.166,12.02401699]
[1771548348254,0.50000073,83.196,83.16,3.55307113]
[1771548348255,0.50000073,83.196,83.17,3.55307113]
[1771548348572,0.50000073,83.194,83.17,3.55307113]
[1771548349175,0.50000073,83.194,83.136,102.2421093]
[1771548349176,0.50000073,83.194,83.16,3.55307113]
[1771548349877,0.50000073,83.194,83.138,0.28432314]
[1771548350084,0.50000073,83.194,83.17,3.55307113]
[1771548351874,0.50000073,83.194,83.171,12.02342162]
[1771548354468,88.78731996,83.214,83.132,30.07265553]
[1771548354469,0.50000073,83.192,83.132,30.07265553]
[1771548354786,0.50000073,83.192,83.16,3.55307113]
[1771548355464,12.02053106,83.191,83.16,3.55307113]
[1771548355668,0.50000073,83.19,83.16,3.55307113]
[1771548356079,0.50000073,83.213,83.18,3.55307113]
[1771548356271,0.50000073,83.213,83.19,3.55307113]
[1771548357469,12.01735305,83.213,83.19,3.55307113]
[1771548357676,0.50000073,83.212,83.18,3.55307113]
[1771548359778,0.50000073,83.21,83.181,12.02197617]
[1771548360485,3.55307113,83.23,83.191,0.49857334]
[1771548360681,12.01475411,83.231,83.201,0.49857334]
[1771548361276,12.01475411,83.231,83.21,3.55307113]
[1771548362289,12.01413332,83.236,83.212,0.45443958]
[1771548362590,0.49712485,83.235,83.212,0.45443958]
[1771548362777,0.49712485,83.235,83.2,3.55307113]
[1771548363581,0.49712485,83.229,83.19,3.55307113]
[1771548363778,0.49712485,83.219,83.18,3.55307113]
[1771548364095,0.49712485,83.209,83.175,0.45443958]
[1771548364294,0.49712485,83.207,83.174,12.02296921]
[1771548366996,0.46550404,83.205,83.175,0.46588862]
[1771548367185,0.46550404,83.205,83.181,0.46588862]
[1771548374898,0.46550404,83.211,83.183,0.46588862]
[1771548375198,12.01619783,83.221,83.201,0.46588862]
[1771548375420,0.46550404,83.22,83.201,0.46588862]
[1771548375806,0.46550404,83.22,83.2,3.55665029]
[1771548376006,0.46550404,83.22,83.195,0.46588862]
[1771548377207,12.01648661,83.219,83.195,0.46588862]
[1771548377391,0.46550404,83.218,83.195,0.46588862]
[1771548378796,0.46550404,83.216,83.195,0.46588862]
[1771548378988,0.46550404,83.216,83.191,0.46588862]
[1771548379194,0.46550404,83.216,83.192,0.46588862]
[1771548382221,0.46550404,83.233,83.211,0.46588862]
[1771548382691,0.46550404,83.233,83.22,3.55665029]
[1771548382892,0.46550404,83.24,83.22,3.55665029]
[1771548383089,0.46550404,83.24,83.22,4.02253891]
[1771548384802,0.46550404,83.24,83.221,0.46588862]
[1771548385916,0.46550404,83.24,83.221,12.01619783]
[1771548386098,12.47823712,83.246,83.222,0.46588862]
[1771548386298,0.46550404,83.245,83.222,0.46588862]
[1771548386799,0.46550404,83.245,83.221,12.01619783]
[1771548386800,0.46550404,83.243,83.211,0.46588862]
[1771548387009,0.46550404,83.243,83.22,3.55665029]
[1771548387206,0.46550404,83.239,83.2,3.55665029]
[1771548387411,0.46550404,83.229,83.192,0.46588862]
[1771548388198,0.46550404,83.229,83.194,0.46588862]
[1771548389013,0.46550404,83.227,83.21,3.55665029]
[1771548389319,0.46550404,83.227,83.195,12.01995312]
[1771548391320,0.46550404,83.225,83.192,0.46588862]
[1771548391705,0.46550404,83.219,83.186,12.02115779]
[1771548392909,0.46550404,83.219,83.186,42.07429173]
[1771548393216,0.46550404,83.235,83.21,3.55665029]
[1771548393414,0.46550404,83.234,83.21,4.02253891]
[1771548393601,0.46550404,83.234,83.211,0.46588862]
[1771548394005,0.46550404,83.234,83.21,3.55665029]
[1771548396318,0.46550404,83.232,83.2,3.55665029]
[1771548396497,0.46550404,83.219,83.18,3.55665029]
[1771548396702,0.46550404,83.217,83.18,16.04459296]
[1771548397424,0.46550404,83.217,83.181,0.47370701]
[1771548397622,0.46550404,83.217,83.19,3.55665029]
[1771548397925,0.46550404,83.217,83.191,0.47370701]
[1771548400031,0.45571259,83.215,83.184,0.47370701]
[1771548400531,0.45571259,83.215,83.19,3.55665029]
[1771548401735,0.45571259,83.213,83.19,3.55665029]
[1771548401933,0.45571259,83.213,83.184,0.47370701]
[1771548403511,0.45571259,83.213,83.185,0.47370701]
[1771548406322,0.45571259,83.211,83.185,0.47370701]
[1771548406535,0.45571259,83.211,83.186,0.47370701]
[1771548408318,0.45571259,83.209,83.181,0.47370701]
[1771548408509,0.45571259,83.209,83.114,48.12638534]
[1771548408510,0.45571259,83.209,83.17,0.47370701]
[1771548408710,0.45571259,83.209,83.17,3.55665029]
[1771548409135,0.45571259,83.199,83.164,0.47370701]
[1771548409738,0.45571259,83.199,83.17,3.55665029]
[1771548411022,0.45571259,83.197,83.171,0.47370701]
[1771548413644,0.45571259,83.195,83.171,0.47370701]
[1771548417147,0.45571259,83.195,83.18,3.55665029]
[1771548417346,12.01932623,83.2,83.181,0.47370701]
[1771548417347,12.47503882,83.2,83.181,0.47370701]
[1771548417650,0.45571259,83.199,83.181,0.47370701]
[1771548417848,3.55665029,83.23,83.191,0.47370701]
[1771548418845,42.05264991,83.229,83.191,0.47370701]
[1771548419754,0.45571259,83.226,83.191,0.47370701]
[1771548420753,0.45571259,83.226,83.201,0.47370701]
[1771548420931,42.05366046,83.227,83.201,0.47370701]
[1771548420932,12.01533156,83.227,83.201,0.47370701]
[1771548421131,0.45571259,83.238,83.22,4.0303573]
[1771548422142,0.48792494,83.236,83.22,4.0303573]
[1771548422344,0.48792494,83.236,83.22,3.55665029]
[1771548422658,12.01388805,83.237,83.221,0.4756852]
[1771548423957,0.1,83.25,83.231,0.4756852]
[1771548424253,12.0121563,83.249,83.231,3.99e-05]
[1771548424831,0.48792494,83.248,83.22,3.55665029]
[1771548425238,0.1,83.25,83.23,3.55665029]
[1771548425443,3.65665029,83.26,83.221,12.01619783]
[1771548425444,0.48792494,83.258,83.24,3.55665029]
[1771548425750,0.58792494,83.26,83.24,3.55665029]
[1771548426258,0.58792494,83.26,83.24,4.03233549]
[1771548426432,0.58792494,83.26,83.241,0.4756852]
[1771548426638,0.1,83.26,83.25,3.55665029]